[Event "Early-Titled-Tuesday-Blitz-September-12-2023"]
[Site "Chess.com"]
[Date "2023.09.12"]
[Round "11"]
[White "ajedrezhoy"]
[Black "LamaChampetre"]
[Result "0-1"]
[WhiteElo "2364"]
[BlackElo "2263"]
[TimeControl "180+1"]
[EndTime "10:06:54 PDT"]
[Termination "LamaChampetre won by resignation"]

1. c4 {[%clk 0:02:55.9]} 1... g6 {[%clk 0:02:55.3]} 2. Nc3 {[%clk 0:02:52.4]}
2... c5 {[%clk 0:02:52.7]} 3. g3 {[%clk 0:02:51.8]} 3... Bg7 {[%clk 0:02:51.9]}
4. Bg2 {[%clk 0:02:52.4]} 4... Nc6 {[%clk 0:02:52.2]} 5. e4 {[%clk 0:02:52.8]}
5... e5 {[%clk 0:02:43.8]} 6. Nge2 {[%clk 0:02:49.6]} 6... Nge7 {[%clk
0:02:43.8]} 7. O-O {[%clk 0:02:49.7]} 7... O-O {[%clk 0:02:44.4]} 8. d3 {[%clk
0:02:49.8]} 8... d6 {[%clk 0:02:44.6]} 9. Rb1 {[%clk 0:02:48]} 9... Be6 {[%clk
0:02:43.4]} 10. Nd5 {[%clk 0:02:45.6]} 10... h6 {[%clk 0:02:39.5]} 11. h3 {[%clk
0:02:44.2]} 11... Nd4 {[%clk 0:02:35.4]} 12. f4 {[%clk 0:02:36.2]} 12... Bxd5
{[%clk 0:02:15.7]} 13. cxd5 {[%clk 0:02:34.5]} 13... Kh7 {[%clk 0:02:00.6]} 14.
Kh2 {[%clk 0:02:32.6]} 14... Qd7 {[%clk 0:01:45.6]} 15. fxe5 {[%clk 0:02:28.1]}
15... dxe5 {[%clk 0:01:44.4]} 16. Nxd4 {[%clk 0:02:23.8]} 16... cxd4 {[%clk
0:01:42.4]} 17. g4 {[%clk 0:02:21.3]} 17... Rac8 {[%clk 0:01:40.6]} 18. Bd2
{[%clk 0:02:18.4]} 18... Qb5 {[%clk 0:01:31.4]} 19. Be1 {[%clk 0:02:09.9]} 19...
Rcd8 {[%clk 0:01:16.5]} 20. a3 {[%clk 0:02:08.4]} 20... Nc8 {[%clk 0:01:16.1]}
21. Bh4 {[%clk 0:01:56.2]} 21... Rd7 {[%clk 0:01:14]} 22. Bf6 {[%clk 0:01:47.8]}
22... Nd6 {[%clk 0:01:10.6]} 23. Bxg7 {[%clk 0:01:44.6]} 23... Kxg7 {[%clk
0:01:09.8]} 24. Qd2 {[%clk 0:01:35.5]} 24... f6 {[%clk 0:01:01.4]} 25. Rbc1
{[%clk 0:01:30.9]} 25... Rff7 {[%clk 0:00:56.5]} 26. Rc2 {[%clk 0:01:29.5]}
26... Rc7 {[%clk 0:00:49.6]} 27. Rfc1 {[%clk 0:01:28]} 27... Qb6 {[%clk
0:00:29.5]} 28. h4 {[%clk 0:01:19.7]} 28... Rxc2 {[%clk 0:00:27.6]} 29. Rxc2
{[%clk 0:01:18.9]} 29... Rc7 {[%clk 0:00:26.5]} 30. Rxc7+ {[%clk 0:00:55]} 30...
Qxc7 {[%clk 0:00:26.1]} 31. g5 {[%clk 0:00:54.2]} 31... fxg5 {[%clk 0:00:15.4]}
32. hxg5 {[%clk 0:00:53.7]} 32... h5 {[%clk 0:00:12.4]} 33. Bh3 {[%clk
0:00:41.3]} 33... Nf7 {[%clk 0:00:08.6]} 34. Be6 {[%clk 0:00:40.1]} 34... Nd8
{[%clk 0:00:08.4]} 35. Qf2 {[%clk 0:00:34]} 35... Qe7 {[%clk 0:00:06.4]} 36. Bh3
{[%clk 0:00:22.9]} 36... Nf7 {[%clk 0:00:06.5]} 37. Qg3 {[%clk 0:00:18.8]} 37...
Qxg5 {[%clk 0:00:05.3]} 38. Qxg5 {[%clk 0:00:17.9]} 38... Nxg5 {[%clk
0:00:06.2]} 39. d6 {[%clk 0:00:17.9]} 39... Kf8 {[%clk 0:00:06]} 40. d7 {[%clk
0:00:16]} 40... Ke7 {[%clk 0:00:06.1]} 41. Bf1 {[%clk 0:00:11.8]} 41... Kxd7
{[%clk 0:00:05.2]} 42. Kg3 {[%clk 0:00:11.9]} 42... Ke6 {[%clk 0:00:05.3]} 43.
Kh4 {[%clk 0:00:12]} 43... Nf3+ {[%clk 0:00:04.9]} 44. Kg3 {[%clk 0:00:12.1]}
44... Ne1 {[%clk 0:00:05]} 45. Be2 {[%clk 0:00:11.6]} 45... Nc2 {[%clk
0:00:04.3]} 46. Kf2 {[%clk 0:00:10.9]} 46... Kf6 {[%clk 0:00:04.5]} 47. Bd1
{[%clk 0:00:10.8]} 47... Ne3 {[%clk 0:00:04.8]} 48. Bb3 {[%clk 0:00:10.3]} 48...
g5 {[%clk 0:00:04.9]} 49. Kg3 {[%clk 0:00:09.7]} 49... h4+ {[%clk 0:00:04.5]}
50. Kh3 {[%clk 0:00:09.9]} 50... b6 {[%clk 0:00:04.5]} 51. Bg8 {[%clk
0:00:08.2]} 51... Kg7 {[%clk 0:00:04.5]} 52. Be6 {[%clk 0:00:07.9]} 52... Kf6
{[%clk 0:00:04.8]} 53. Bc8 {[%clk 0:00:07.6]} 53... Nd1 {[%clk 0:00:05.1]} 54.
b4 {[%clk 0:00:07.4]} 54... Ne3 {[%clk 0:00:04.7]} 55. a4 {[%clk 0:00:06.9]}
55... Nc2 {[%clk 0:00:05.1]} 56. b5 {[%clk 0:00:06.8]} 56... Nb4 {[%clk
0:00:05.5]} 0-1

[Event "Early-Titled-Tuesday-Blitz-September-12-2023"]
[Site "Chess.com"]
[Date "2023.09.12"]
[Round "11"]
[White "younix2022"]
[Black "ChEsper99"]
[Result "0-1"]
[WhiteElo "2061"]
[BlackElo "2236"]
[TimeControl "180+1"]
[EndTime "10:07:01 PDT"]
[Termination "ChEsper99 won by resignation"]

1. d4 {[%clk 0:02:57.6]} 1... Nf6 {[%clk 0:02:51.9]} 2. Bf4 {[%clk 0:02:56.3]}
2... d5 {[%clk 0:02:51.8]} 3. Nc3 {[%clk 0:02:53.9]} 3... a6 {[%clk 0:02:47.2]}
4. Nf3 {[%clk 0:02:53.3]} 4... e6 {[%clk 0:02:45.6]} 5. e3 {[%clk 0:02:53.4]}
5... c5 {[%clk 0:02:45.5]} 6. Be2 {[%clk 0:02:51.1]} 6... Nc6 {[%clk 0:02:44.7]}
7. h3 {[%clk 0:02:43.7]} 7... Bd6 {[%clk 0:02:43]} 8. Ne5 {[%clk 0:02:36.1]}
8... Qc7 {[%clk 0:02:41.2]} 9. Na4 {[%clk 0:02:12.8]} 9... cxd4 {[%clk
0:02:22.6]} 10. exd4 {[%clk 0:02:09.8]} 10... Nxe5 {[%clk 0:02:18.4]} 11. dxe5
{[%clk 0:02:08]} 11... Bxe5 {[%clk 0:02:18.5]} 12. Bxe5 {[%clk 0:02:08.2]} 12...
Qxe5 {[%clk 0:02:18.4]} 13. Nb6 {[%clk 0:02:06.6]} 13... Rb8 {[%clk 0:02:15.9]}
14. O-O {[%clk 0:01:50]} 14... O-O {[%clk 0:02:08.9]} 15. c3 {[%clk 0:01:47]}
15... Qc7 {[%clk 0:01:53.5]} 16. Qb3 {[%clk 0:01:37.2]} 16... Ne4 {[%clk
0:01:49.4]} 17. Rad1 {[%clk 0:01:27.8]} 17... Rd8 {[%clk 0:01:37.5]} 18. a4
{[%clk 0:01:02.2]} 18... Nc5 {[%clk 0:00:35.7]} 19. Qb4 {[%clk 0:01:00.3]} 19...
a5 {[%clk 0:00:35.5]} 20. Qxa5 {[%clk 0:00:46.7]} 20... Nxa4 {[%clk 0:00:35.3]}
21. Qxa4 {[%clk 0:00:42]} 21... Qxb6 {[%clk 0:00:35.3]} 22. Qc2 {[%clk
0:00:37.2]} 22... Bd7 {[%clk 0:00:28.3]} 23. Bd3 {[%clk 0:00:36.8]} 23... g6
{[%clk 0:00:27.9]} 24. h4 {[%clk 0:00:36]} 24... Bb5 {[%clk 0:00:24.8]} 25. h5
{[%clk 0:00:34.6]} 25... Bxd3 {[%clk 0:00:22.9]} 26. Qxd3 {[%clk 0:00:35.3]}
26... Qc5 {[%clk 0:00:21.2]} 27. h6 {[%clk 0:00:22]} 27... b5 {[%clk 0:00:20.3]}
28. Qf3 {[%clk 0:00:19.9]} 28... Qf8 {[%clk 0:00:18.1]} 29. Qf4 {[%clk
0:00:19.1]} 29... Qe7 {[%clk 0:00:16.7]} 30. Rd4 {[%clk 0:00:17.8]} 30... e5
{[%clk 0:00:16.3]} 31. Re1 {[%clk 0:00:15.8]} 31... f6 {[%clk 0:00:13.8]} 32.
Qh4 {[%clk 0:00:12.4]} 32... Rb6 {[%clk 0:00:11.2]} 33. Rb4 {[%clk 0:00:12.2]}
33... Re8 {[%clk 0:00:09.1]} 34. f4 {[%clk 0:00:12]} 34... e4 {[%clk 0:00:08.3]}
35. Rd4 {[%clk 0:00:09.6]} 35... Rd6 {[%clk 0:00:07.4]} 36. Red1 {[%clk
0:00:09.6]} 36... Qe6 {[%clk 0:00:06.9]} 37. Qf2 {[%clk 0:00:09]} 37... f5
{[%clk 0:00:06.9]} 38. Qd2 {[%clk 0:00:08.2]} 38... Red8 {[%clk 0:00:06.9]} 39.
Qc2 {[%clk 0:00:08.1]} 39... Qe7 {[%clk 0:00:06.5]} 40. Qb3 {[%clk 0:00:08.3]}
40... Qd7 {[%clk 0:00:05.8]} 41. Qb4 {[%clk 0:00:06.6]} 41... Qc6 {[%clk
0:00:05.1]} 42. g3 {[%clk 0:00:06.1]} 42... Kf7 {[%clk 0:00:05]} 43. b3 {[%clk
0:00:06]} 43... Rc8 {[%clk 0:00:04.5]} 44. c4 {[%clk 0:00:04.4]} 44... bxc4
{[%clk 0:00:04.6]} 45. bxc4 {[%clk 0:00:04.9]} 45... Qc5 {[%clk 0:00:04.2]} 46.
Qxc5 {[%clk 0:00:05.2]} 46... Rxc5 {[%clk 0:00:05.1]} 47. Rxd5 {[%clk
0:00:05.2]} 47... Rdxd5 {[%clk 0:00:05.4]} 48. Rxd5 {[%clk 0:00:06.1]} 48...
Rxd5 {[%clk 0:00:05.6]} 49. cxd5 {[%clk 0:00:06.9]} 49... Ke7 {[%clk 0:00:06.3]}
50. Kf2 {[%clk 0:00:07.3]} 50... Kd6 {[%clk 0:00:06.7]} 51. Ke3 {[%clk
0:00:08.2]} 51... Kxd5 {[%clk 0:00:07.2]} 52. Kd2 {[%clk 0:00:08.2]} 52... Kd4
{[%clk 0:00:07.6]} 53. Ke2 {[%clk 0:00:08.6]} 53... e3 {[%clk 0:00:08.5]} 54.
Kf3 {[%clk 0:00:09.2]} 54... Kd3 {[%clk 0:00:08.6]} 55. g4 {[%clk 0:00:09.6]}
55... e2 {[%clk 0:00:07.5]} 56. gxf5 {[%clk 0:00:08.5]} 56... gxf5 {[%clk
0:00:06.5]} 57. Kg3 {[%clk 0:00:07.1]} 57... e1=Q+ {[%clk 0:00:05.8]} 58. Kf3
{[%clk 0:00:06.7]} 58... Qe3+ {[%clk 0:00:06.2]} 0-1

[Event "Early-Titled-Tuesday-Blitz-September-12-2023"]
[Site "Chess.com"]
[Date "2023.09.12"]
[Round "11"]
[White "JaloliddinIlkhomi"]
[Black "kacprekt"]
[Result "0-1"]
[WhiteElo "2612"]
[BlackElo "2487"]
[TimeControl "180+1"]
[EndTime "10:07:03 PDT"]
[Termination "kacprekt won by resignation"]

1. Nf3 {[%clk 0:03:00.9]} 1... g6 {[%clk 0:02:59.7]} 2. d4 {[%clk 0:02:58.8]}
2... Bg7 {[%clk 0:03:00]} 3. c3 {[%clk 0:02:59.7]} 3... d5 {[%clk 0:02:57.2]} 4.
Bg5 {[%clk 0:02:58.8]} 4... h6 {[%clk 0:02:54.3]} 5. Bh4 {[%clk 0:02:58.5]} 5...
c5 {[%clk 0:02:39.9]} 6. e3 {[%clk 0:02:53.2]} 6... Qb6 {[%clk 0:02:38.3]} 7.
Qb3 {[%clk 0:02:52]} 7... cxd4 {[%clk 0:02:24.5]} 8. exd4 {[%clk 0:02:48.5]}
8... Qe6+ {[%clk 0:02:03.8]} 9. Be2 {[%clk 0:02:46.4]} 9... Nf6 {[%clk
0:02:01.4]} 10. Nbd2 {[%clk 0:02:45.3]} 10... Ne4 {[%clk 0:01:58.5]} 11. Nxe4
{[%clk 0:02:36.6]} 11... Qxe4 {[%clk 0:01:56.4]} 12. O-O {[%clk 0:02:21.9]}
12... g5 {[%clk 0:01:52.7]} 13. Rfe1 {[%clk 0:02:11.2]} 13... Qf5 {[%clk
0:01:33.2]} 14. Bg3 {[%clk 0:02:09.3]} 14... Nc6 {[%clk 0:01:31.3]} 15. Rad1
{[%clk 0:02:06.5]} 15... O-O {[%clk 0:01:23.4]} 16. Bd3 {[%clk 0:02:06]} 16...
Qd7 {[%clk 0:01:21.3]} 17. Bb1 {[%clk 0:02:05.5]} 17... f5 {[%clk 0:01:08.6]}
18. Be5 {[%clk 0:02:05.4]} 18... Nxe5 {[%clk 0:01:07.7]} 19. Nxe5 {[%clk
0:02:05.2]} 19... Qd6 {[%clk 0:01:05.2]} 20. Re2 {[%clk 0:01:58.8]} 20... e6
{[%clk 0:01:05]} 21. Rde1 {[%clk 0:01:58.8]} 21... Rb8 {[%clk 0:01:03.5]} 22.
Nd3 {[%clk 0:01:48.2]} 22... b6 {[%clk 0:00:59.9]} 23. Qb4 {[%clk 0:01:44.9]}
23... Rd8 {[%clk 0:00:55.8]} 24. Qb3 {[%clk 0:01:34.6]} 24... Rb7 {[%clk
0:00:43.7]} 25. Ne5 {[%clk 0:01:32.4]} 25... Re7 {[%clk 0:00:39.1]} 26. Bd3
{[%clk 0:01:28]} 26... a6 {[%clk 0:00:31.9]} 27. Bb1 {[%clk 0:01:23.1]} 27... b5
{[%clk 0:00:31]} 28. Qc2 {[%clk 0:01:17.2]} 28... a5 {[%clk 0:00:25.7]} 29. Nd3
{[%clk 0:01:16.9]} 29... b4 {[%clk 0:00:23.3]} 30. Nc5 {[%clk 0:01:16.2]} 30...
Kf7 {[%clk 0:00:19.8]} 31. Re3 {[%clk 0:01:13.4]} 31... Bf6 {[%clk 0:00:19.9]}
32. Qe2 {[%clk 0:01:08.5]} 32... Rde8 {[%clk 0:00:19.6]} 33. Qh5+ {[%clk
0:01:08.2]} 33... Kg7 {[%clk 0:00:19.5]} 34. Rh3 {[%clk 0:01:08.7]} 34... Rh8
{[%clk 0:00:18.1]} 35. Rhe3 {[%clk 0:01:05.4]} 35... Rhe8 {[%clk 0:00:14.3]} 36.
g4 {[%clk 0:01:05]} 36... Qf4 {[%clk 0:00:10.5]} 37. h3 {[%clk 0:00:49]} 37...
fxg4 {[%clk 0:00:10.8]} 38. hxg4 {[%clk 0:00:41]} 38... e5 {[%clk 0:00:11.1]}
39. dxe5 {[%clk 0:00:30.7]} 39... Bxe5 {[%clk 0:00:11.4]} 40. Qg6+ {[%clk
0:00:17.5]} 40... Kf8 {[%clk 0:00:11.5]} 41. Qxh6+ {[%clk 0:00:18]} 41... Bg7
{[%clk 0:00:09.6]} 42. Qh5 {[%clk 0:00:06.5]} 42... Rxe3 {[%clk 0:00:09.4]} 43.
fxe3 {[%clk 0:00:06.2]} 43... Qg3+ {[%clk 0:00:08.6]} 44. Kh1 {[%clk 0:00:06.5]}
44... Qxe1+ {[%clk 0:00:04.9]} 45. Kg2 {[%clk 0:00:06.3]} 45... Qe2+ {[%clk
0:00:04.6]} 46. Kh1 {[%clk 0:00:05.9]} 46... Qd1+ {[%clk 0:00:04.9]} 47. Kg2
{[%clk 0:00:06.2]} 47... Qxg4+ {[%clk 0:00:04.9]} 48. Qxg4 {[%clk 0:00:06.1]}
48... Bxg4 {[%clk 0:00:05.8]} 49. cxb4 {[%clk 0:00:06.1]} 49... axb4 {[%clk
0:00:04.9]} 50. Kf2 {[%clk 0:00:07]} 50... d4 {[%clk 0:00:03.9]} 51. Be4 {[%clk
0:00:05.7]} 51... dxe3+ {[%clk 0:00:04.4]} 52. Kxe3 {[%clk 0:00:06.4]} 52... Bf5
{[%clk 0:00:04.3]} 53. Kd3 {[%clk 0:00:07.2]} 53... Bxe4+ {[%clk 0:00:04.8]} 54.
Nxe4 {[%clk 0:00:08.1]} 54... Rxe4 {[%clk 0:00:05.3]} 55. Kxe4 {[%clk
0:00:07.2]} 55... Bxb2 {[%clk 0:00:06]} 56. Kf5 {[%clk 0:00:08.1]} 56... Bc1
{[%clk 0:00:05.9]} 57. a3 {[%clk 0:00:08.5]} 57... bxa3 {[%clk 0:00:05.9]} 58.
Kg4 {[%clk 0:00:08.7]} 58... a2 {[%clk 0:00:06.6]} 59. Kf5 {[%clk 0:00:09.6]}
59... a1=Q {[%clk 0:00:07.4]} 60. Kg4 {[%clk 0:00:10.5]} 60... Qe5 {[%clk
0:00:07.5]} 61. Kh5 {[%clk 0:00:10.8]} 61... g4+ {[%clk 0:00:08.1]} 62. Kg6
{[%clk 0:00:11.7]} 62... Qg7+ {[%clk 0:00:07.7]} 63. Kh5 {[%clk 0:00:11]} 63...
g3 {[%clk 0:00:08]} 64. Kh4 {[%clk 0:00:11.9]} 64... g2 {[%clk 0:00:08.1]} 65.
Kh3 {[%clk 0:00:12.8]} 65... g1=Q {[%clk 0:00:07.7]} 0-1

[Event "Early-Titled-Tuesday-Blitz-September-12-2023"]
[Site "Chess.com"]
[Date "2023.09.12"]
[Round "11"]
[White "Gauravthegm"]
[Black "Amirreza_p"]
[Result "1/2-1/2"]
[WhiteElo "2433"]
[BlackElo "2554"]
[TimeControl "180+1"]
[EndTime "10:07:03 PDT"]
[Termination "Game drawn by repetition"]

1. e4 {[%clk 0:03:00.9]} 1... c6 {[%clk 0:02:58.8]} 2. d4 {[%clk 0:03:00.3]}
2... d5 {[%clk 0:02:58.7]} 3. exd5 {[%clk 0:03:00.7]} 3... cxd5 {[%clk
0:02:58.6]} 4. Bd3 {[%clk 0:03:01]} 4... Nf6 {[%clk 0:02:59.1]} 5. c3 {[%clk
0:02:59.8]} 5... Bg4 {[%clk 0:02:58.4]} 6. Qb3 {[%clk 0:02:58.9]} 6... Qc7
{[%clk 0:02:56.4]} 7. h3 {[%clk 0:02:54.4]} 7... Bd7 {[%clk 0:02:52.7]} 8. Ne2
{[%clk 0:02:47.3]} 8... Nc6 {[%clk 0:02:49.3]} 9. Bf4 {[%clk 0:02:46.4]} 9... e5
{[%clk 0:02:49.3]} 10. dxe5 {[%clk 0:02:39.6]} 10... Nxe5 {[%clk 0:02:50.2]} 11.
Bb5 {[%clk 0:02:18.3]} 11... Bd6 {[%clk 0:02:37.8]} 12. Bxd7+ {[%clk 0:02:17.7]}
12... Qxd7 {[%clk 0:02:13.8]} 13. O-O {[%clk 0:02:13.2]} 13... O-O {[%clk
0:02:09.8]} 14. Nd2 {[%clk 0:02:11.7]} 14... Qf5 {[%clk 0:01:57]} 15. Bxe5
{[%clk 0:01:59]} 15... Qxe5 {[%clk 0:01:52.9]} 16. Ng3 {[%clk 0:01:58.7]} 16...
h5 {[%clk 0:01:50.1]} 17. Nf3 {[%clk 0:01:58.3]} 17... Qf4 {[%clk 0:01:48.9]}
18. Ne2 {[%clk 0:01:57]} 18... Qf5 {[%clk 0:01:42.4]} 19. Rad1 {[%clk
0:01:53.3]} 19... Rab8 {[%clk 0:01:33]} 20. Ned4 {[%clk 0:01:51.6]} 20... Qf4
{[%clk 0:01:20.9]} 21. Ne2 {[%clk 0:01:48.7]} 21... Qf5 {[%clk 0:01:16.3]} 22.
Ned4 {[%clk 0:01:48.9]} 22... Qd7 {[%clk 0:01:14.6]} 23. Nb5 {[%clk 0:01:46]}
23... Bf4 {[%clk 0:01:11.3]} 24. Nxa7 {[%clk 0:01:40.9]} 24... b5 {[%clk
0:01:05.9]} 25. Qb4 {[%clk 0:01:33.8]} 25... Bd6 {[%clk 0:01:03.7]} 26. Qd4
{[%clk 0:01:31.8]} 26... Rb7 {[%clk 0:01:00.4]} 27. Nxb5 {[%clk 0:01:09.9]}
27... Qxb5 {[%clk 0:00:57.5]} 28. b4 {[%clk 0:01:07.6]} 28... Bb8 {[%clk
0:00:54.5]} 29. Rfe1 {[%clk 0:01:04.5]} 29... Rc7 {[%clk 0:00:52]} 30. Ne5
{[%clk 0:01:00]} 30... Rcc8 {[%clk 0:00:49.6]} 31. Re3 {[%clk 0:00:49]} 31...
Qa4 {[%clk 0:00:47.5]} 32. Rd2 {[%clk 0:00:41.6]} 32... Qa3 {[%clk 0:00:46.7]}
33. Rg3 {[%clk 0:00:31.3]} 33... Bxe5 {[%clk 0:00:25.8]} 34. Qxe5 {[%clk
0:00:31]} 34... Qc1+ {[%clk 0:00:24.8]} 35. Kh2 {[%clk 0:00:31.2]} 35... Qxd2
{[%clk 0:00:24.5]} 36. Qxf6 {[%clk 0:00:27.3]} 36... g6 {[%clk 0:00:24.2]} 37.
f4 {[%clk 0:00:20.4]} 37... Qc2 {[%clk 0:00:18.1]} 38. f5 {[%clk 0:00:19]} 38...
Kh7 {[%clk 0:00:06.8]} 39. fxg6+ {[%clk 0:00:10.2]} 39... fxg6 {[%clk
0:00:07.7]} 40. Qe7+ {[%clk 0:00:10.6]} 40... Kg8 {[%clk 0:00:07.3]} 41. Qe6+
{[%clk 0:00:09.8]} 41... Kg7 {[%clk 0:00:06.4]} 42. Qe5+ {[%clk 0:00:05.2]}
42... Kh6 {[%clk 0:00:03.2]} 43. Qe3+ {[%clk 0:00:03.9]} 43... Kg7 {[%clk
0:00:03.6]} 44. Qe5+ {[%clk 0:00:03.6]} 44... Kf7 {[%clk 0:00:03]} 45. Rf3+
{[%clk 0:00:02.1]} 45... Kg8 {[%clk 0:00:03.5]} 46. Qe6+ {[%clk 0:00:02]} 46...
Kg7 {[%clk 0:00:02.8]} 47. Qe7+ {[%clk 0:00:01.8]} 47... Kg8 {[%clk 0:00:03.4]}
48. Qe6+ {[%clk 0:00:02]} 48... Kh8 {[%clk 0:00:03.8]} 49. Qe5+ {[%clk
0:00:02.2]} 49... Kh7 {[%clk 0:00:01.7]} 50. Qe7+ {[%clk 0:00:02.6]} 50... Kg8
{[%clk 0:00:01.7]} 51. Qe6+ {[%clk 0:00:03]} 1/2-1/2

[Event "Early-Titled-Tuesday-Blitz-September-12-2023"]
[Site "Chess.com"]
[Date "2023.09.12"]
[Round "11"]
[White "sergeikim"]
[Black "Itk04"]
[Result "0-1"]
[WhiteElo "2574"]
[BlackElo "2754"]
[TimeControl "180+1"]
[EndTime "10:07:05 PDT"]
[Termination "Itk04 won on time"]

1. d4 {[%clk 0:03:00.9]} 1... Nf6 {[%clk 0:02:59.6]} 2. c4 {[%clk 0:03:01]} 2...
g6 {[%clk 0:03:00.2]} 3. Nc3 {[%clk 0:03:01.1]} 3... d5 {[%clk 0:02:53.1]} 4.
cxd5 {[%clk 0:03:00.6]} 4... Nxd5 {[%clk 0:02:54]} 5. e4 {[%clk 0:03:01]} 5...
Nxc3 {[%clk 0:02:54.3]} 6. bxc3 {[%clk 0:03:01.9]} 6... Bg7 {[%clk 0:02:55]} 7.
Bc4 {[%clk 0:03:01.9]} 7... O-O {[%clk 0:02:54.5]} 8. Ne2 {[%clk 0:03:02]} 8...
c5 {[%clk 0:02:53.6]} 9. O-O {[%clk 0:03:01.9]} 9... Nc6 {[%clk 0:02:51.5]} 10.
Be3 {[%clk 0:03:01.8]} 10... Bd7 {[%clk 0:02:51.9]} 11. Qd2 {[%clk 0:03:01.1]}
11... Qa5 {[%clk 0:02:43.9]} 12. Qb2 {[%clk 0:02:57.7]} 12... Rab8 {[%clk
0:02:35.6]} 13. Rfd1 {[%clk 0:02:52.1]} 13... cxd4 {[%clk 0:02:33.8]} 14. cxd4
{[%clk 0:02:51.4]} 14... Qb4 {[%clk 0:02:32.9]} 15. Bb3 {[%clk 0:02:51.2]} 15...
Rbc8 {[%clk 0:02:11.8]} 16. Rac1 {[%clk 0:02:47.9]} 16... e6 {[%clk 0:02:03.7]}
17. Rc4 {[%clk 0:02:33.2]} 17... Qb5 {[%clk 0:01:56.7]} 18. Rdc1 {[%clk
0:02:19.3]} 18... Na5 {[%clk 0:01:24.2]} 19. Rxc8 {[%clk 0:02:17.3]} 19... Bxc8
{[%clk 0:01:24.9]} 20. e5 {[%clk 0:01:59.8]} 20... Nxb3 {[%clk 0:01:20.8]} 21.
axb3 {[%clk 0:01:59.5]} 21... Bd7 {[%clk 0:01:15.6]} 22. h4 {[%clk 0:01:56.4]}
22... Bc6 {[%clk 0:01:12.2]} 23. Nf4 {[%clk 0:01:48.3]} 23... h6 {[%clk
0:01:05.9]} 24. Rc5 {[%clk 0:01:30.5]} 24... Qb4 {[%clk 0:01:05.1]} 25. Qc2
{[%clk 0:01:27.6]} 25... Rd8 {[%clk 0:00:46.5]} 26. Kh2 {[%clk 0:01:25.9]} 26...
Be8 {[%clk 0:00:38.3]} 27. Rc8 {[%clk 0:01:21.5]} 27... Qe7 {[%clk 0:00:38.9]}
28. Rc7 {[%clk 0:01:19.9]} 28... Qxh4+ {[%clk 0:00:39]} 29. Kg1 {[%clk
0:01:19.6]} 29... g5 {[%clk 0:00:17.9]} 30. Ne2 {[%clk 0:01:15.7]} 30... Bc6
{[%clk 0:00:16.9]} 31. Ng3 {[%clk 0:01:12.3]} 31... Qg4 {[%clk 0:00:15.5]} 32.
b4 {[%clk 0:01:03.8]} 32... a6 {[%clk 0:00:15.2]} 33. Qd2 {[%clk 0:00:39.5]}
33... Bxe5 {[%clk 0:00:12.8]} 34. Rxc6 {[%clk 0:00:37.9]} 34... bxc6 {[%clk
0:00:13.7]} 35. Nf1 {[%clk 0:00:36.8]} 35... Bxd4 {[%clk 0:00:11.6]} 36. Qc2
{[%clk 0:00:35.6]} 36... Qf5 {[%clk 0:00:11]} 37. Qxc6 {[%clk 0:00:34.9]} 37...
Bxe3 {[%clk 0:00:11.3]} 38. Nxe3 {[%clk 0:00:34.7]} 38... Qb1+ {[%clk
0:00:07.3]} 39. Kh2 {[%clk 0:00:34.2]} 39... Qa1 {[%clk 0:00:08]} 40. Qc7 {[%clk
0:00:29.5]} 40... Qd4 {[%clk 0:00:07.7]} 41. g3 {[%clk 0:00:25.7]} 41... Qd2
{[%clk 0:00:07]} 42. Kg2 {[%clk 0:00:24.8]} 42... Qd6 {[%clk 0:00:06.4]} 43. Qc3
{[%clk 0:00:23]} 43... Qd4 {[%clk 0:00:05.6]} 44. Qc7 {[%clk 0:00:22.6]} 44...
Qe4+ {[%clk 0:00:06.1]} 45. Kh2 {[%clk 0:00:20.6]} 45... Rd2 {[%clk 0:00:06.7]}
46. Kg1 {[%clk 0:00:15.9]} 46... Qd4 {[%clk 0:00:03.4]} 47. Qc8+ {[%clk
0:00:11.9]} 47... Kg7 {[%clk 0:00:04]} 48. Qxa6 {[%clk 0:00:10.5]} 48... Qf6
{[%clk 0:00:03.4]} 49. Qf1 {[%clk 0:00:09.1]} 49... Qd4 {[%clk 0:00:03.3]} 50.
Qe1 {[%clk 0:00:07.9]} 50... Qxb4 {[%clk 0:00:02.5]} 51. Kg2 {[%clk 0:00:06.6]}
51... Qd4 {[%clk 0:00:02.7]} 52. Kg1 {[%clk 0:00:02.1]} 52... Rb2 {[%clk
0:00:03.3]} 53. Kg2 {[%clk 0:00:02.1]} 53... Qe4+ {[%clk 0:00:03.6]} 54. Kg1
{[%clk 0:00:02.1]} 54... Qf3 {[%clk 0:00:04.3]} 55. Nf1 {[%clk 0:00:01.8]} 55...
Re2 {[%clk 0:00:04.5]} 56. Qa1+ {[%clk 0:00:01.8]} 56... Qf6 {[%clk 0:00:04.9]}
0-1